bitfinex-derivatives/quotes_SOLF0:USTF0_20240827
["timestamp","ask_amount","ask_price","bid_price","bid_amount"]
[1724796779200,0.0441226,147.11,147.02,39.0]
[1724796779385,39.0,147.16,147.02,39.0]
[1724796779618,3.3969,147.17,147.09,3.3987]
[1724796779717,39.0,147.19,147.05,39.0]
[1724796779928,0.04425769,147.1,147.08,0.05142443]
[1724796780353,39.0,147.16,147.01,1.24912871]
[1724796780538,0.0484076,147.1,146.98,39.0]
[1724796780871,39.0,147.11,147.08,0.0500305]
[1724796781104,39.0,147.11,146.97,1.2493902]
[1724796781265,39.0,147.22,146.94,3.1816]
[1724796781266,39.0476487,147.05,146.94,3.1816]
[1724796781638,39.0,147.05,147.03,0.05031744]
[1724796781811,39.0,147.07,146.96,3.4016]
[1724796781926,39.0,147.07,146.94,1.559]
[1724796781927,0.04924015,147.01,146.94,1.559]
[1724796782227,39.04924015,147.01,146.87,40.56]
[1724796782458,39.0,146.95,146.82,39.0]
[1724796782622,39.0,146.92,146.78,3.1811]
[1724796782835,39.0,146.92,146.87,0.05035585]
[1724796782836,3.4032,146.9,146.87,0.05035585]
[1724796783201,39.0,146.86,146.73,39.0]
[1724796783381,39.0,146.86,146.74,3.3512659]
[1724796783755,3.4042,146.86,146.75,42.4064]
[1724796783953,39.0,146.86,146.74,3.3512659]
[1724796784208,39.0,146.86,146.71,39.0]
[1724796784506,0.04970135,146.82,146.79,0.04572998]
[1724796784737,39.0,146.81,146.79,0.04572998]
[1724796784914,0.04970135,146.82,146.69,39.0]
[1724796785220,0.04970135,146.82,146.68,3.38562914]
[1724796785396,39.0,146.79,146.63,1.6249]
[1724796785688,39.0,146.72,146.64,1.25182886]
[1724796785887,39.0,146.69,146.53,3.34139923]
[1724796786057,39.0,146.74,146.59,39.0]
[1724796786347,0.04416754,146.69,146.55,3.44389932]
[1724796786539,0.04416754,146.69,146.47,1.6249]
[1724796786540,39.0,146.65,146.47,1.6249]
[1724796786784,0.04416754,146.69,146.48,1.25235924]
[1724796786978,27.2,146.81,146.48,1.25235924]
[1724796786979,39.0,146.77,146.48,1.25235924]
[1724796787172,39.0,146.82,146.68,3.4081]
[1724796787460,27.2,146.95,146.49,2.25235924]
[1724796787681,39.0,146.85,146.72,39.0]
[1724796787830,39.0,146.92,146.61,39.0]
[1724796787831,27.2,146.95,146.74,39.0]
[1724796787952,39.0,146.86,146.74,39.0]
[1724796788246,39.0,146.89,146.74,42.4068]
[1724796788338,39.0,146.94,146.79,39.0]
[1724796788534,3.4027,146.92,146.84,39.0]
[1724796788745,39.0,146.97,146.84,39.0]
[1724796788944,6.741,147.19,146.87,39.0]
[1724796789143,193.82083,147.25,146.87,39.0]
[1724796789144,0.00206072,146.89,146.87,39.04783502]
[1724796789332,39.0,147.03,146.87,39.0]
[1724796789658,39.0,147.06,146.92,39.0]
[1724796789783,39.0,147.1,146.95,39.0]
[1724796790110,39.0,147.07,146.96,3.2348]
[1724796790325,39.0,147.04,146.96,3.2348]
[1724796790485,39.0,147.09,146.96,3.2348]
[1724796790850,39.0,147.04,146.96,3.2348]
[1724796791041,0.0506766,147.04,147.01,0.04796959]
[1724796791541,39.0,147.03,147.01,0.04796959]
[1724796791784,3.4014,146.98,146.85,3.4042]
[1724796792079,39.0,147.02,146.89,39.0]
[1724796792311,3.4009,147.0,146.89,39.0]
[1724796792541,39.0,147.04,146.89,39.0]
[1724796792787,39.0,147.07,146.92,39.0]
[1724796793013,39.0,147.07,146.93,0.04300361]
[1724796793014,0.04627028,146.96,146.93,0.04300361]
[1724796793382,42.4003,147.03,146.9,3.403]
[1724796793645,0.04294898,146.96,146.93,0.0499522]
[1724796794059,39.0,147.07,146.94,39.0]
[1724796794344,39.0,147.14,146.93,0.04922081]
[1724796794345,0.04446944,146.96,146.93,0.04922081]
[1724796794550,39.0,147.04,146.91,39.0]
[1724796794898,0.05059758,146.96,146.93,0.04443126]
[1724796795137,39.0,146.99,146.86,39.0]
[1724796795338,39.0,147.04,146.91,39.0]
[1724796795640,39.0,147.14,146.83,40.56]
[1724796795641,0.04290676,146.96,146.93,0.04517614]
[1724796795853,39.0,147.07,146.93,39.0]
[1724796796163,27.2,147.18,146.84,2.49993831]
[1724796796164,39.0,146.95,146.84,2.49993831]
[1724796796342,39.0,146.98,146.85,39.0]
[1724796796744,39.0,147.0,146.89,3.4033]
[1724796796936,39.0,146.98,146.85,39.0]
[1724796797128,0.04966208,146.93,146.9,0.04298054]
[1724796798433,39.0,147.05,146.9,0.04298054]
[1724796798434,39.0,147.0,146.9,0.04298054]
[1724796798842,39.0,146.95,146.84,2.49993831]
[1724796799046,39.0,146.95,146.85,1.25030821]
[1724796799253,39.0,147.0,146.86,39.0]
[1724796799739,39.0,147.05,146.89,39.0]
[1724796799939,0.04578063,146.94,146.92,0.04997735]
[1724796800255,39.0,147.05,146.9,1.25001392]
[1724796800440,39.0,147.0,146.9,1.6118]
[1724796800640,39.0,147.05,146.93,39.0]
[1724796800851,39.0,147.07,146.94,3.37766369]
[1724796801067,39.0,147.02,146.9,40.6118]
[1724796801307,39.04311522,147.02,146.99,0.05109889]
[1724796801457,39.0,147.02,146.99,0.05109889]
[1724796801675,39.0,147.0,146.9,1.6118]
[1724796801967,39.0,147.02,146.9,40.6118]
[1724796802149,39.0,147.02,146.94,0.0489732]
[1724796802150,0.05168293,146.96,146.94,0.0489732]
[1724796802347,39.0,147.04,146.94,0.0489732]
[1724796802569,0.04356248,146.96,146.92,39.0]
[1724796802779,3.3996,147.06,146.98,0.05148314]
[1724796802957,3.3996,147.06,146.97,3.4015]
[1724796803145,0.04694491,147.03,147.01,0.05208076]
[1724796803355,39.0,147.22,147.0,39.0]
[1724796803578,39.0,147.22,147.03,39.0]
[1724796803746,1.08200733,147.21,147.06,39.0]
[1724796803968,39.0,147.22,146.98,39.0]
[1724796803969,39.0,147.22,147.08,39.0]
[1724796804305,39.0,147.22,147.13,3.3978]
[1724796804306,0.04879889,147.14,147.13,3.3978]
[1724796804486,39.0,147.22,147.13,3.40057153]
[1724796804673,39.0,147.22,147.08,39.0]
[1724796804854,39.0,147.22,147.15,3.3973]
[1724796805277,39.0,147.26,147.15,39.0]
[1724796805559,39.0,147.29,147.15,39.0]
[1724796805788,0.0483968,147.21,147.19,0.05054334]
[1724796805960,0.0483968,147.21,147.2,3.3962]
[1724796806253,39.0,147.29,147.19,0.05054334]
[1724796806444,39.0,147.32,147.19,0.05054334]
[1724796806654,39.0,147.32,147.2,39.0]
[1724796806972,8.26693,147.25,147.23,42.3954]
[1724796807177,3.30163,147.25,147.23,42.3954]
[1724796807378,39.0,147.42,147.23,42.37206631]
[1724796807681,0.2229,147.49,147.23,42.37206631]
[1724796807682,39.0,147.44,147.37,3.3921]
[1724796807853,39.0,147.47,147.37,3.3921]
[1724796808055,39.0,147.47,147.39,0.04417734]
[1724796808259,0.05134345,147.43,147.39,0.04417734]
[1724796808647,0.05134345,147.43,147.4,39.0]
[1724796808853,0.05134345,147.43,147.42,3.3911]
[1724796809087,39.0,147.52,147.4,39.04829153]
[1724796809291,0.04830233,147.44,147.42,39.0]
[1724796809532,39.0,147.56,147.42,39.0]
[1724796809653,39.0,147.61,147.47,39.0]
[1724796809958,39.0,147.61,147.5,39.0]
[1724796810555,0.04795209,147.55,147.53,0.05019063]
[1724796810842,0.04795209,147.55,147.54,39.0]
[1724796810983,39.0,147.64,147.51,39.0]
[1724796811146,0.04405207,147.56,147.53,0.05110261]
[1724796811561,39.0,147.69,147.54,39.0]
[1724796811771,39.0,147.74,147.6,39.0]
[1724796811961,39.0,147.66,147.54,39.0]
[1724796812257,0.04993204,147.63,147.54,39.0]
[1724796812680,39.0,147.69,147.57,39.0]
[1724796812878,39.0,147.71,147.59,39.0]
[1724796813071,39.0,147.71,147.59,3.3872]
[1724796813072,39.0,147.69,147.59,3.3872]
[1724796813258,0.04901045,147.6,147.59,39.0]
[1724796813459,0.04901045,147.6,147.56,39.0]
[1724796813769,39.0,147.71,147.59,39.0]
[1724796814066,39.0,147.74,147.59,39.0]
[1724796814268,0.05147566,147.66,147.59,39.0]
[1724796814522,0.05147566,147.66,147.51,42.40593069]
[1724796814523,0.05147566,147.66,147.64,39.0]
[1724796814730,0.05147566,147.66,147.65,0.05201088]
[1724796814873,3.242,147.76,147.65,0.05201088]
[1724796815099,46.3136,147.75,147.65,0.05201088]
[1724796815357,0.04981125,147.67,147.62,42.93]
[1724796815601,3.242,147.76,147.69,0.04824579]
[1724796815927,3.242,147.76,147.65,42.93]
[1724796815928,0.05088067,147.71,147.65,42.93]
[1724796816079,3.242,147.76,147.7,42.93]
[1724796816254,3.242,147.76,147.72,42.93]
[1724796816572,42.93,148.03,147.72,42.93]
[1724796816573,42.93,147.91,147.74,42.93]
[1724796816787,42.93,147.91,147.79,42.93]
[1724796817027,3.3009,147.93,147.82,42.93]
[1724796817258,42.93,147.89,147.77,42.93]
[1724796817523,0.04741181,147.84,147.82,0.04342057]
[1724796817878,46.2309,147.93,147.82,0.04342057]
[1724796818055,3.3801,147.9,147.82,0.04342057]
[1724796818265,0.04955237,147.84,147.71,42.93]
[1724796818492,42.93,147.8,147.69,42.93]
[1724796818957,42.93,147.8,147.57,42.93]
[1724796818958,42.93,147.8,147.66,42.93]
[1724796819154,42.93,147.83,147.69,42.93]
[1724796819354,1.0868621,147.82,147.66,42.93]
[1724796819657,0.04508289,147.74,147.72,42.9775911]
[1724796819864,0.04508289,147.74,147.72,0.0475911]
[1724796820071,0.04508289,147.74,147.64,42.93]
[1724796820256,42.93,147.74,147.61,42.93]
[1724796820469,42.93,147.72,147.57,42.93]
[1724796820684,3.3847,147.7,147.61,3.3867]
[1724796820871,42.93,147.72,147.57,42.93]
[1724796821088,3.2889,147.78,147.68,42.93]
[1724796821280,3.3833,147.77,147.66,42.93]
[1724796821473,3.2889,147.78,147.72,42.93]
[1724796821774,0.05177321,147.74,147.73,3.384]
[1724796821956,0.05177321,147.74,147.71,42.93]
[1724796822158,3.2889,147.78,147.71,42.93]
[1724796822374,3.2889,147.78,147.74,42.93]
[1724796822596,0.04520774,147.74,147.72,0.04969984]
[1724796822873,3.2889,147.78,147.72,0.04969984]
[1724796823010,0.04489753,147.74,147.63,42.93]
[1724796823375,42.93,147.7,147.58,42.93]
[1724796823488,3.3847,147.71,147.59,42.93]
[1724796823717,3.3847,147.71,147.61,42.93]
[1724796823864,42.93,147.75,147.61,42.93]
[1724796824166,0.04785108,147.69,147.67,0.04455561]
[1724796824519,42.93,147.68,147.55,42.93]
[1724796824685,42.93,147.7,147.57,42.93]
[1724796825173,3.2889,147.78,147.5,42.93]
[1724796825174,42.93,147.73,147.5,42.93]
[1724796825417,42.93,147.73,147.35,6.7855]
[1724796825418,42.93,147.61,147.6,0.04492423]
[1724796825668,3.3862,147.64,147.53,42.93]
[1724796825882,42.93,147.8,147.58,42.93]
[1724796825883,42.93,147.71,147.58,42.93]
[1724796826376,42.93,147.71,147.5,42.93]
[1724796826377,42.93,147.68,147.55,42.93]
[1724796826592,42.93,147.73,147.61,42.93]
[1724796826871,0.05190472,147.66,147.57,42.93]
[1724796827467,42.93,147.73,147.57,42.93]
[1724796827665,42.93,147.73,147.61,42.93]
[1724796827666,3.3844,147.72,147.61,42.93]
[1724796828079,42.93,147.73,147.57,42.93]
[1724796828262,42.93,147.8,147.57,42.93]
[1724796828263,0.04804462,147.68,147.57,42.93]
[1724796828593,42.93,147.72,147.57,42.93]
[1724796829074,42.93,147.62,147.5,42.93]
[1724796829287,42.93,147.6,147.47,42.93]
[1724796829483,3.388,147.56,147.48,3.3896]
[1724796829676,0.05027453,147.55,147.5,42.93]
[1724796829880,0.05027453,147.55,147.47,42.93]
[1724796830177,1.5234,147.61,147.39,42.93]
[1724796830178,0.04515056,147.52,147.39,42.93]
[1724796830408,3.3891,147.51,147.42,3.3909]
[1724796830624,42.93,147.52,147.39,42.93]
[1724796830775,42.93,147.52,147.26,1.6339]
[1724796830776,0.04395406,147.48,147.37,42.93]
[1724796830969,42.93,147.44,147.32,42.93]
[1724796831179,42.93,147.46,147.32,42.93]
[1724796831377,42.93,147.44,147.28,42.93]
[1724796831570,0.05210643,147.39,147.35,42.93]
[1724796831795,1.5702,147.45,147.38,42.93]
[1724796832076,1.5702,147.45,147.35,46.3226]
[1724796832299,0.05148528,147.43,147.33,42.93]
[1724796832483,0.05148528,147.43,147.41,42.93]
[1724796832683,1.5702,147.45,147.38,42.93]
[1724796832880,0.04275186,147.43,147.38,42.93]
[1724796833385,0.04275186,147.43,147.33,42.93]
[1724796833772,1.5702,147.45,147.33,42.93]
[1724796833983,0.04780432,147.39,147.35,42.93]
[1724796834190,1.5702,147.45,147.38,42.93]
[1724796834479,1.5702,147.45,147.4,3.3915]
[1724796834675,1.576,147.47,147.4,3.3915]
[1724796834888,1.576,147.47,147.38,42.93]
[1724796835171,42.93,147.46,147.33,42.93]
[1724796835474,3.3911,147.43,147.41,0.04532864]
[1724796835743,3.3911,147.43,147.33,42.93]
[1724796835889,3.3911,147.43,147.31,42.93]
[1724796836079,1.576,147.47,147.36,42.93]
[1724796836593,42.93,147.37,147.26,42.93]
[1724796836915,42.93,147.42,147.13,42.93]
[1724796836916,0.04568835,147.33,147.21,42.93]
[1724796837102,42.93,147.31,147.18,42.93]
[1724796837282,0.04578208,147.28,147.18,42.93]
[1724796837464,0.04578208,147.28,147.04,7.08982654]
[1724796837465,42.93,147.28,147.17,3.3967]
[1724796837669,0.04317032,147.24,147.14,42.93]
[1724796838081,42.93,147.23,147.08,42.93]
[1724796838278,42.97731374,147.2,147.09,1.24819042]
[1724796838474,42.97731374,147.2,147.09,3.3986]
[1724796838475,1.6181,147.19,147.09,3.3986]
[1724796838670,0.0429947,147.16,147.06,42.93]
[1724796838980,0.04711941,147.12,147.06,42.93]
[1724796839274,0.04711941,147.12,146.96,27.12]
[1724796839495,42.93,147.14,147.0,42.93]
[1724796839731,0.04366324,147.05,147.0,42.93]
[1724796839892,1.6181,147.19,147.03,42.93]
[1724796839893,42.93,147.16,147.03,42.93]
[1724796840094,0.04775924,147.04,147.03,42.93]
[1724796840282,1.6181,147.19,147.03,85.86]
[1724796840480,1.6181,147.19,147.13,42.93]
[1724796840753,1.6181,147.19,147.16,42.93]
[1724796841003,44.4855,147.35,147.18,42.93]
[1724796841120,42.93,147.33,147.22,42.93]
[1724796841437,42.93,147.33,147.13,42.93]
[1724796841438,42.93,147.33,147.19,42.93]
[1724796841627,0.04595448,147.29,147.22,42.93]
[1724796841801,0.04595448,147.29,147.27,42.93]
[1724796841988,1.5,147.34,147.24,42.93]
[1724796842516,0.04786767,147.3,147.19,42.93]
[1724796842689,0.04786767,147.3,147.18,3.3966]
[1724796842881,1.5,147.34,147.18,3.3966]
[1724796842882,42.93,147.29,147.18,3.3966]
[1724796843090,42.93,147.24,147.11,42.93]
[1724796843403,42.93,147.29,146.99,1.5459]
[1724796843404,1.581,147.28,147.16,42.93]
[1724796843886,1.581,147.28,147.18,42.93]
[1724796844123,0.04605083,147.23,147.21,42.93]
[1724796844380,0.04605083,147.23,147.21,46.3258]
[1724796844596,44.43,147.34,147.21,42.93]
[1724796844597,1.5,147.34,147.21,42.93]
[1724796844852,1.5,147.34,147.26,42.93]
[1724796845020,1.5,147.34,147.19,3.35598152]
[1724796845184,42.93,147.3,147.19,42.93]
[1724796845422,42.93,147.33,147.23,3.3954]
[1724796845585,42.93,147.33,147.18,42.93]
[1724796845783,42.93,147.28,146.98,42.93]
[1724796846007,1.5,147.34,146.98,42.93]
[1724796846008,42.93,147.23,147.11,3.3981]
[1724796846339,42.93,147.18,147.15,0.04658199]
[1724796846499,42.93,147.21,147.08,42.93]
[1724796846700,0.04926482,147.18,147.11,42.93]
[1724796846905,3.3954,147.24,147.13,42.93]
[1724796847212,42.93,147.26,147.11,42.93]
[1724796847433,42.93,147.23,147.11,42.93]
[1724796847632,0.04500962,147.2,147.14,42.93]
[1724796847801,3.1094,147.28,147.16,42.93]
[1724796848093,0.04446893,147.23,147.13,42.93]
[1724796848293,42.93,147.26,147.13,42.93]
[1724796848488,0.044249,147.19,147.13,42.93]
[1724796848702,0.044249,147.19,147.1,42.93]
[1724796848905,42.93,147.2,147.08,42.93]
[1724796849205,3.1094,147.28,146.98,42.93]
[1724796849206,42.93,147.15,146.98,42.93]
[1724796849428,42.93,147.13,146.98,42.93]
[1724796849669,0.0470365,147.08,146.98,42.93]
[1724796849909,0.04675069,147.04,146.98,46.36843024]
[1724796850097,42.93,147.15,146.98,46.36843024]
[1724796850098,0.04401654,147.02,146.98,46.36843024]
[1724796850295,0.04418654,147.01,146.98,42.93]
[1724796850500,42.93,147.1,146.95,42.93]
[1724796850813,42.93,147.12,147.0,42.93]
[1724796851000,0.05184182,147.07,146.91,3.47449955]
[1724796851230,0.04642487,147.0,146.91,42.93]
[1724796851390,0.04721457,146.97,146.88,42.93]
[1724796851587,0.04324002,146.94,146.88,42.93]
[1724796852389,0.04324002,146.94,146.81,42.93]
[1724796852600,42.93,146.89,146.69,42.93]
[1724796852801,42.93,146.89,146.74,42.93]
[1724796853000,0.04797992,146.84,146.77,1.25110917]
[1724796853189,0.04797992,146.84,146.74,42.93]
[1724796853397,3.45447368,146.8,146.69,42.93]
[1724796853590,0.04886423,146.76,146.59,3.45240795]
[1724796853893,42.93,146.77,146.7,1.25160898]
[1724796854398,42.93,146.77,146.58,27.16]
[1724796854399,42.93,146.73,146.56,42.93]
[1724796854616,42.93,146.73,146.57,1.25252884]
[1724796854800,42.93,146.73,146.58,44.18252884]
[1724796855043,42.93,146.67,146.44,3.37602765]
[1724796855286,1.5934,146.76,146.37,81.5172433]
[1724796855287,0.04388096,146.66,146.37,81.5172433]
[1724796855565,42.93,146.64,146.51,42.93]
[1724796855737,2.78067753,146.75,146.56,42.93]
[1724796855895,42.93,146.7,146.56,42.93]
[1724796856203,35.52776727,147.06,146.78,6.8117]
[1724796856442,36.24410765,147.43,147.05,128.79]
[1724796856625,42.93,147.73,147.05,128.79]
[1724796856626,1.4964,147.63,147.06,28.43001193]
[1724796856899,1.4964,147.63,147.05,83.58548405]
[1724796856900,0.04629795,147.25,147.05,83.58548405]
[1724796857088,42.93,147.32,147.05,80.19413249]
[1724796857302,27.18,147.44,147.29,24.42386033]
[1724796857509,42.93,147.37,147.32,12.05846033]
[1724796857701,42.93,147.38,147.33,24.26752437]
[1724796857881,3.42347285,147.43,147.34,23.7245609]
[1724796858098,4.42347285,147.43,147.37,9.05149043]
[1724796858327,4.42347285,147.43,147.23,60.94]
[1724796858627,60.99122198,147.41,147.23,60.94]
[1724796858794,60.94,147.37,147.15,60.94]
[1724796859498,1.0,147.4,147.11,60.94]
[1724796859499,60.94,147.29,147.11,60.94]
[1724796859708,60.94,147.26,147.05,3.3995]
[1724796859901,0.05103909,147.27,147.1,60.94]
[1724796860203,60.94,147.26,147.06,60.94]
[1724796860795,0.0429412,147.17,147.1,60.94]
[1724796861001,0.0429412,147.17,147.05,60.94]
[1724796861193,1.0,147.26,147.09,60.94]
[1724796861534,61.94,147.26,147.05,60.94]
[1724796861803,0.04466776,147.12,147.05,60.94]
[1724796862122,1.0,147.26,147.08,60.94]
[1724796862309,1.0,147.26,147.12,60.94]
[1724796862613,27.18,147.38,147.05,60.94]
[1724796862614,60.94,147.25,147.05,60.94]
[1724796862850,1.0,147.25,146.96,4.96797223]
[1724796863024,60.99137734,147.2,147.0,60.94]
[1724796863203,60.94,147.2,146.96,4.96797223]
[1724796863391,60.94,147.24,147.03,60.94]
[1724796863596,0.04655887,147.11,147.03,60.94]
[1724796863799,60.94,147.24,147.03,60.94]
[1724796864034,3.3989,147.09,146.96,1.6421]
[1724796864209,64.26948752,147.27,147.03,60.94]
[1724796864210,0.04732908,147.08,147.03,60.94]
[1724796864436,0.04732908,147.08,147.06,60.94]
[1724796864713,61.94,147.23,147.02,60.94]
[1724796864901,61.94,147.23,146.96,1.6421]
[1724796864902,60.94,147.16,146.99,60.94]
[1724796865202,60.94,147.2,146.96,1.6421]
[1724796865402,60.94,147.16,146.97,60.94]
[1724796865627,60.94,147.15,146.89,3.45253749]
[1724796865898,60.94,147.15,146.95,60.94]
[1724796866105,60.94,147.08,146.87,60.94]
[1724796866345,0.04509127,147.03,147.01,0.05202793]
[1724796866526,27.18,147.21,146.91,60.94]
[1724796866527,60.94,147.12,146.91,60.94]
[1724796866733,1.0,147.14,146.98,60.94]
[1724796866893,0.04921348,147.03,147.01,0.04955648]
[1724796867294,60.94,147.12,146.92,60.94]
[1724796867525,0.05109004,147.03,147.01,0.04800895]
[1724796867708,60.94,147.13,146.92,60.94]
[1724796867902,0.04604151,147.03,147.01,0.0453764]
[1724796868141,60.94,147.16,146.95,60.94]
[1724796868319,0.05067747,147.03,147.01,0.04913319]
[1724796868601,60.94,147.05,146.86,60.94]
[1724796868795,0.05058133,147.03,147.01,0.05132216]
[1724796868997,60.94,147.05,146.82,3.1462]
[1724796868998,60.94,147.09,146.89,60.94]
[1724796869501,60.94,147.02,146.83,60.94]
[1724796869700,60.94,146.98,146.82,3.1462]
[1724796869999,1.0,147.08,146.91,0.05189984]
[1724796870000,3.4017,146.97,146.91,0.05189984]
[1724796870216,60.94,147.06,146.86,60.94]
[1724796870436,0.0437117,146.95,146.93,0.04883811]
[1724796870944,60.94,147.12,146.93,60.98874639]
[1724796871118,121.88,146.94,146.68,36.13302828]
[1724796871475,60.94,146.76,146.54,60.94]
[1724796871628,60.94,146.8,146.62,60.94]
[1724796871933,60.94,146.88,146.69,60.94]
[1724796872097,3.4055,146.8,146.7,5.0632]
[1724796872337,0.04303253,146.8,146.77,0.04834538]
[1724796872505,60.94,146.85,146.7,1.6556]
[1724796872909,0.0447585,146.8,146.77,0.05011821]
[1724796873399,60.94,146.88,146.7,1.6556]
[1724796873597,0.04950174,146.8,146.77,0.04775483]
[1724796873994,1.0,146.93,146.7,1.6556]
[1724796873995,60.94,146.81,146.7,1.6556]
[1724796874622,60.98925106,146.77,146.74,0.05131712]
[1724796874805,3.4065,146.76,146.74,0.05131712]
[1724796875023,60.94,146.81,146.7,1.6556]
[1724796875303,1.0,146.93,146.74,0.04399371]
[1724796875304,0.04586592,146.76,146.74,0.04399371]
[1724796875504,60.94,146.77,146.61,1.5296]
[1724796875894,60.94,146.63,146.56,1.5059]
[1724796876151,60.94,146.66,146.58,0.04800264]
[1724796876331,27.22,146.84,146.58,0.04800264]
[1724796876332,0.0519759,146.61,146.58,0.04800264]
[1724796876507,60.94,146.63,146.56,1.5059]
[1724796876849,3.4106,146.58,146.56,1.5059]
[1724796877011,60.94,146.6,146.49,1.5268]
[1724796877214,60.94,146.6,146.58,0.05186962]
[1724796877503,60.94,146.6,146.41,1.6159]
[1724796877758,27.22,146.64,146.4,3.66037114]
[1724796877940,60.94,146.42,146.35,3.4158]
[1724796878122,60.94,146.5,146.22,0.01307556]
[1724796878123,121.88,146.36,146.22,0.01307556]
[1724796878409,60.94,146.23,145.96,9.18486405]
[1724796878705,60.94,146.25,146.03,1.25558778]
[1724796878951,60.94,146.26,146.03,3.42822659]
[1724796879115,1.0,146.35,145.92,1.6159]
[1724796879116,0.05129035,146.14,145.92,1.6159]
[1724796879267,60.94,146.06,145.92,7.1450692]
[1724796879474,60.94,146.06,145.91,3.7950365]
[1724796879475,60.94,146.06,146.0,1.25010385]
[1724796879611,3.33835925,146.12,146.0,1.25010385]
[1724796879847,3.33835925,146.12,145.91,3.7950365]
[1724796879848,61.55,146.01,145.91,3.7950365]
[1724796880092,27.30746205,146.04,145.41,27.26]
[1724796880259,3.44816695,146.07,145.42,3.1433]
[1724796880501,27.26,146.16,145.84,54.34]
[1724796880628,27.26,146.16,145.68,88.60401595]
[1724796880629,1.0,146.06,145.68,88.60401595]
[1724796880949,1.0,146.06,145.9,54.34]
[1724796881245,54.34,146.11,145.82,27.26]
[1724796881397,88.4344,146.29,145.71,3.43893079]
[1724796881398,3.4241,145.99,145.83,1.25780766]
[1724796881536,54.34,146.13,145.83,1.25780766]
[1724796881752,54.34,145.94,145.69,2.5714]
[1724796881951,1.0,146.1,145.7,1.25884698]
[1724796882510,61.48,145.92,145.7,1.25884698]
[1724796882702,0.04409933,145.91,145.69,1.0]
[1724796882903,0.04409933,145.91,145.75,61.48]
[1724796883111,61.48,145.93,145.8,0.04357603]
[1724796883302,27.3,145.99,145.8,0.04357603]
[1724796883499,61.48,146.04,145.8,0.04357603]
[1724796883906,6.827,146.44,145.95,61.44]
[1724796884110,61.44,146.17,145.91,61.44]
[1724796884303,61.44,145.99,145.75,3.48655933]
[1724796884499,88.74,146.23,145.84,61.44]
[1724796884703,1.0,146.16,145.92,61.44]
[1724796885008,1.0,146.16,145.93,1.601]
[1724796885206,0.04779062,146.05,146.03,0.05109764]
[1724796885807,61.44,146.14,145.91,61.44]
[1724796886105,64.8606,146.14,145.91,61.44]
[1724796886410,61.44,146.42,146.03,0.04450654]
[1724796886709,61.44,146.18,146.03,0.04450654]
[1724796887106,61.44,146.18,145.87,27.32]
[1724796887311,61.44,146.18,145.97,61.44]
[1724796887506,61.44,146.18,145.98,1.601]
[1724796887714,61.44,146.21,145.98,63.041]
[1724796887904,0.04548545,146.09,146.06,0.04898791]
[1724796888106,61.44,146.17,146.06,0.04898791]
[1724796888309,61.44,146.14,145.98,1.601]